[Event "Rapid Tournament (RAP)"]
[Site "Biel, Switzerland"]
[Date "2026.07.12"]
[Round "9.25"]
[White "Carey, Michael"]
[Black "Sadeghi, Hassan Roger"]
[Result "1-0"]
[TimeControl "15 + 5"]
[WhiteTitle "-"]
[BlackTitle "-"]
[WhiteFideId "30923760"]
[BlackFideId "1304712"]
[WhiteElo "1850"]
[BlackElo "2028"]

1. Nf3 {[%clk 00:15:09]} {[%emt 00:12:14]} Nf6 {[%clk 00:15:05]} {[%emt
00:00:07]} 2. c4 {[%clk 00:15:14]} e6 {[%clk 00:14:52]} {[%emt 00:00:17]} 3.
Nc3 {[%clk 00:15:15]} {[%emt 00:00:04]} d5 {[%clk 00:14:54]} {[%emt 00:00:03]}
4. e3 {[%clk 00:15:18]} {[%emt 00:00:02]} c5 {[%clk 00:14:54]} {[%emt
00:00:05]} 5. cxd5 {[%clk 00:15:18]} {[%emt 00:00:05]} Nxd5 {[%clk 00:14:41]}
{[%emt 00:00:18]} 6. Bc4 {[%clk 00:14:14]} {[%emt 00:01:09]} Nc6 {[%clk
00:14:39]} {[%emt 00:00:07]} 7. O-O {[%clk 00:14:12]} {[%emt 00:00:07]} Be7
{[%clk 00:14:32]} {[%emt 00:00:13]} 8. d4 {[%clk 00:14:01]} {[%emt 00:00:16]}
O-O {[%clk 00:14:21]} {[%emt 00:00:15]} 9. a3 {[%clk 00:13:57]} {[%emt
00:00:10]} cxd4 {[%clk 00:13:48]} {[%emt 00:00:38]} 10. exd4 {[%clk 00:13:54]}
{[%emt 00:00:08]} a6 {[%clk 00:11:59]} {[%emt 00:01:54]} 11. Qd3 {[%clk
00:13:33]} {[%emt 00:00:25]} b5 {[%clk 00:10:51]} {[%emt 00:01:14]} 12. Bb3
{[%clk 00:13:32]} {[%emt 00:00:05]} b4 {[%clk 00:10:33]} {[%emt 00:00:23]} 13.
Ne4 {[%clk 00:13:13]} {[%emt 00:00:24]} a5 {[%clk 00:10:24]} {[%emt 00:00:15]}
14. Neg5 {[%clk 00:12:18]} {[%emt 00:00:59]} g6 {[%clk 00:10:12]} {[%emt
00:00:17]} 15. Re1 {[%clk 00:11:13]} {[%emt 00:01:10]} Bf6 {[%clk 00:09:19]}
{[%emt 00:00:58]} 16. h4 {[%clk 00:10:27]} {[%emt 00:00:51]} Nce7 {[%clk
00:06:43]} {[%emt 00:02:42]} 17. h5 {[%clk 00:09:11]} {[%emt 00:01:21]} Nf5
{[%clk 00:05:35]} {[%emt 00:01:12]} 18. hxg6 {[%clk 00:08:45]} {[%emt
00:00:31]} hxg6 {[%clk 00:05:38]} {[%emt 00:00:02]} 19. Ne4 {[%clk 00:07:32]}
{[%emt 00:01:18]} Be7 {[%clk 00:03:52]} {[%emt 00:01:52]} 20. g4 {[%clk
00:05:54]} {[%emt 00:01:42]} Nd6 {[%clk 00:03:06]} {[%emt 00:00:51]} 21. Bh6
{[%clk 00:05:34]} {[%emt 00:00:25]} Re8 {[%clk 00:03:02]} {[%emt 00:00:10]} 22.
Ne5 {[%clk 00:05:21]} {[%emt 00:00:18]} Nxe4 {[%clk 00:01:33]} {[%emt
00:01:33]} 23. Qxe4 {[%clk 00:05:06]} {[%emt 00:00:21]} Bg5 {[%clk 00:00:59]}
{[%emt 00:00:38]} 24. Nc6 {[%clk 00:03:14]} {[%emt 00:01:57]} Nf6 {[%clk
00:00:08]} {[%emt 00:00:56]} 25. Qg2 {[%clk 00:00:51]} {[%emt 00:02:28]} 1-0

[Event "Rapid Tournament (RAP)"]
[Site "Biel, Switzerland"]
[Date "2026.07.12"]
[Round "9.26"]
[White "Laub, Patrick"]
[Black "Moesching, Colin"]
[Result "1-0"]
[TimeControl "15 + 5"]
[WhiteTitle "-"]
[BlackTitle "-"]
[WhiteFideId "1302566"]
[BlackFideId "1345036"]
[WhiteElo "1949"]
[BlackElo "1820"]

1. e4 {[%clk 00:15:07]} {[%emt 00:00:05]} e5 {[%clk 00:15:09]} 2. Nc3 {[%clk
00:15:11]} Nc6 {[%clk 00:15:10]} {[%emt 00:00:06]} 3. Nge2 {[%clk 00:15:15]}
Nf6 {[%clk 00:14:57]} {[%emt 00:00:17]} 4. d4 {[%clk 00:15:17]} {[%emt
00:00:03]} Bb4 {[%clk 00:14:50]} {[%emt 00:00:13]} 5. d5 {[%clk 00:14:40]}
{[%emt 00:00:42]} Ne7 {[%clk 00:14:50]} {[%emt 00:00:04]} 6. Bd2 {[%clk
00:14:18]} {[%emt 00:00:27]} d6 {[%clk 00:14:51]} {[%emt 00:00:04]} 7. Ng3
{[%clk 00:13:49]} {[%emt 00:00:33]} O-O {[%clk 00:14:49]} {[%emt 00:00:07]} 8.
Be2 {[%clk 00:13:24]} {[%emt 00:00:30]} a5 {[%clk 00:14:47]} {[%emt 00:00:08]}
9. O-O {[%clk 00:13:22]} {[%emt 00:00:08]} c6 {[%clk 00:13:02]} {[%emt
00:01:50]} 10. dxc6 {[%clk 00:12:32]} {[%emt 00:00:55]} bxc6 {[%clk 00:13:03]}
{[%emt 00:00:04]} 11. Bg5 {[%clk 00:12:34]} {[%emt 00:00:02]} Ng6 {[%clk
00:12:49]} {[%emt 00:00:19]} 12. Nh5 {[%clk 00:12:19]} {[%emt 00:00:19]} Kh8
{[%clk 00:10:58]} {[%emt 00:01:56]} 13. Bf3 {[%clk 00:09:35]} {[%emt 00:02:49]}
Be6 {[%clk 00:09:55]} {[%emt 00:01:09]} 14. Ne2 {[%clk 00:08:59]} {[%emt
00:00:41]} Ra7 {[%clk 00:08:56]} {[%emt 00:01:05]} 15. c3 {[%clk 00:08:41]}
{[%emt 00:00:22]} Bc5 {[%clk 00:09:00]} {[%emt 00:00:01]} 16. Neg3 {[%clk
00:08:23]} {[%emt 00:00:23]} d5 {[%clk 00:08:16]} {[%emt 00:00:49]} 17. Nxg7
{[%clk 00:07:57]} {[%emt 00:00:31]} Kxg7 {[%clk 00:07:36]} {[%emt 00:00:45]} 18.
Nh5+ {[%clk 00:08:00]} {[%emt 00:00:02]} Nxh5 {[%clk 00:07:38]} {[%emt
00:00:03]} 19. Bxd8 {[%clk 00:08:03]} {[%emt 00:00:01]} Rxd8 {[%clk 00:07:24]}
{[%emt 00:00:20]} 20. Bxh5 {[%clk 00:08:05]} {[%emt 00:00:03]} Rad7 {[%clk
00:07:09]} {[%emt 00:00:20]} 21. Bxg6 {[%clk 00:07:49]} {[%emt 00:00:20]} hxg6
{[%clk 00:07:12]} {[%emt 00:00:03]} 22. Qa4 {[%clk 00:07:44]} {[%emt 00:00:10]}
dxe4 {[%clk 00:06:16]} {[%emt 00:01:01]} 23. Qxc6 {[%clk 00:07:43]} {[%emt
00:00:05]} Rd5 {[%clk 00:05:55]} {[%emt 00:00:27]} 24. c4 {[%clk 00:07:37]}
{[%emt 00:00:11]} R8d6 {[%clk 00:05:46]} {[%emt 00:00:14]} 25. cxd5 {[%clk
00:07:16]} {[%emt 00:00:27]} 1-0

[Event "Rapid Tournament (RAP)"]
[Site "Biel, Switzerland"]
[Date "2026.07.12"]
[Round "9.27"]
[White "Bonanomi, Silvan"]
[Black "Tureshbayev, Anuar"]
[Result "0-1"]
[TimeControl "15 + 5"]
[WhiteTitle "-"]
[BlackTitle "-"]
[WhiteFideId "1352644"]
[BlackFideId "651081709"]
[WhiteElo "1867"]
[BlackElo "2246"]

1. e4 {[%clk 00:15:07]} {[%emt 00:00:02]} c5 {[%clk 00:14:51]} {[%emt
00:00:20]} 2. c3 {[%clk 00:15:11]} Nf6 {[%clk 00:14:52]} {[%emt 00:00:04]} 3.
e5 {[%clk 00:15:15]} {[%emt 00:00:01]} Nd5 {[%clk 00:14:56]} 4. Nf3 {[%clk
00:15:01]} {[%emt 00:00:19]} d6 {[%clk 00:14:59]} {[%emt 00:00:02]} 5. Bc4
{[%clk 00:15:03]} {[%emt 00:00:03]} Nb6 {[%clk 00:15:02]} {[%emt 00:00:02]} 6.
e6 {[%clk 00:15:06]} {[%emt 00:00:02]} fxe6 {[%clk 00:14:33]} {[%emt 00:00:35]}
7. Bb3 {[%clk 00:14:30]} {[%emt 00:00:40]} Nc6 {[%clk 00:14:07]} {[%emt
00:00:31]} 8. Ng5 {[%clk 00:14:25]} {[%emt 00:00:11]} d5 {[%clk 00:13:21]}
{[%emt 00:00:51]} 9. d4 {[%clk 00:13:50]} {[%emt 00:00:39]} cxd4 {[%clk
00:12:54]} {[%emt 00:00:32]} 10. cxd4 {[%clk 00:13:52]} {[%emt 00:00:03]} e5
{[%clk 00:12:42]} {[%emt 00:00:18]} 11. Qf3 {[%clk 00:13:32]} {[%emt 00:00:24]}
Nxd4 {[%clk 00:12:38]} {[%emt 00:00:09]} 12. Qf7+ {[%clk 00:13:10]} {[%emt
00:00:26]} Kd7 {[%clk 00:12:42]} {[%emt 00:00:01]} 13. Bxd5 {[%clk 00:12:56]}
{[%emt 00:00:20]} Nxd5 {[%clk 00:12:16]} {[%emt 00:00:32]} 14. Qxd5+ {[%clk
00:12:54]} {[%emt 00:00:07]} Kc7 {[%clk 00:12:20]} 15. Qc5+ {[%clk 00:11:46]}
{[%emt 00:01:13]} Kb8 {[%clk 00:12:18]} {[%emt 00:00:07]} 16. Nf7 {[%clk
00:11:36]} {[%emt 00:00:15]} Qc7 {[%clk 00:12:13]} {[%emt 00:00:11]} 17. Qxc7+
{[%clk 00:11:08]} {[%emt 00:00:33]} Kxc7 {[%clk 00:12:17]} 18. Nxh8 {[%clk
00:11:09]} {[%emt 00:00:03]} Nc2+ {[%clk 00:12:13]} {[%emt 00:00:09]} 19. Ke2
{[%clk 00:10:40]} {[%emt 00:00:34]} Nxa1 {[%clk 00:11:41]} {[%emt 00:00:37]} 20.
Na3 {[%clk 00:10:13]} {[%emt 00:00:32]} Be6 {[%clk 00:11:35]} {[%emt 00:00:11]}
21. Bd2 {[%clk 00:09:17]} {[%emt 00:01:02]} g6 {[%clk 00:11:31]} {[%emt
00:00:08]} 22. Rxa1 {[%clk 00:08:37]} {[%emt 00:00:45]} Bg7 {[%clk 00:11:33]}
{[%emt 00:00:04]} 23. Nxg6 {[%clk 00:08:31]} {[%emt 00:00:11]} hxg6 {[%clk
00:11:35]} {[%emt 00:00:01]} 24. Rc1+ {[%clk 00:08:15]} {[%emt 00:00:22]} Kd7
{[%clk 00:11:28]} {[%emt 00:00:12]} 25. b3 {[%clk 00:08:00]} {[%emt 00:00:20]}
Rh8 {[%clk 00:11:21]} {[%emt 00:00:11]} 26. h3 {[%clk 00:07:57]} {[%emt
00:00:09]} Bd5 {[%clk 00:11:24]} {[%emt 00:00:02]} 27. f3 {[%clk 00:06:30]}
{[%emt 00:01:32]} e4 {[%clk 00:11:27]} {[%emt 00:00:02]} 28. fxe4 {[%clk
00:06:20]} {[%emt 00:00:15]} Bxe4 {[%clk 00:11:31]} {[%emt 00:00:01]} 29. Kf2
{[%clk 00:05:21]} {[%emt 00:01:05]} Rf8+ {[%clk 00:11:29]} {[%emt 00:00:06]} 30.
Kg3 {[%clk 00:04:05]} {[%emt 00:01:21]} Be5+ {[%clk 00:11:29]} {[%emt
00:00:04]} 31. Kg4 {[%clk 00:04:06]} {[%emt 00:00:04]} Rf2 {[%clk 00:11:21]}
{[%emt 00:00:14]} 32. Rd1 {[%clk 00:04:07]} {[%emt 00:00:04]} Rxg2+ {[%clk
00:11:21]} {[%emt 00:00:05]} 33. Kh4 {[%clk 00:04:07]} {[%emt 00:00:05]} Bf3
{[%clk 00:11:07]} {[%emt 00:00:19]} 0-1

[Event "Rapid Tournament (RAP)"]
[Site "Biel, Switzerland"]
[Date "2026.07.12"]
[Round "9.28"]
[White "Tan, Jimmy"]
[Black "Haimovich, Tal"]
[Result "0-1"]
[TimeControl "15 + 5"]
[WhiteTitle "-"]
[BlackTitle "-"]
[WhiteFideId "129057499"]
[BlackFideId "2801698"]
[WhiteElo "1845"]
[BlackElo "2245"]

1. d4 {[%clk 00:15:07]} Nf6 {[%clk 00:15:08]} {[%emt 00:00:03]} 2. Bf4 {[%clk
00:15:11]} {[%emt 00:00:04]} g6 {[%clk 00:15:07]} {[%emt 00:00:04]} 3. Nc3
{[%clk 00:15:14]} {[%emt 00:00:04]} Bg7 {[%clk 00:15:07]} {[%emt 00:00:03]} 4.
e4 {[%clk 00:15:18]} O-O {[%clk 00:15:09]} {[%emt 00:00:02]} 5. e5 {[%clk
00:15:07]} {[%emt 00:00:16]} Ne8 {[%clk 00:15:13]} {[%emt 00:00:01]} 6. Qd2
{[%clk 00:14:57]} {[%emt 00:00:14]} d6 {[%clk 00:15:17]} {[%emt 00:00:01]} 7.
Nf3 {[%clk 00:14:38]} {[%emt 00:00:23]} Nc6 {[%clk 00:15:21]} {[%emt 00:00:02]}
8. O-O-O {[%clk 00:14:36]} {[%emt 00:00:07]} Bg4 {[%clk 00:15:23]} {[%emt
00:00:02]} 9. Qe3 {[%clk 00:13:25]} {[%emt 00:01:16]} Qc8 {[%clk 00:14:46]}
{[%emt 00:00:42]} 10. Be2 {[%clk 00:13:15]} {[%emt 00:00:15]} e6 {[%clk
00:11:56]} {[%emt 00:02:56]} 11. h3 {[%clk 00:13:08]} {[%emt 00:00:12]} Bxf3
{[%clk 00:11:43]} {[%emt 00:00:18]} 12. Bxf3 {[%clk 00:13:03]} {[%emt
00:00:08]} Ne7 {[%clk 00:11:28]} {[%emt 00:00:21]} 13. g4 {[%clk 00:12:55]}
{[%emt 00:00:13]} d5 {[%clk 00:10:31]} {[%emt 00:01:03]} 14. h4 {[%clk
00:12:50]} {[%emt 00:00:10]} c5 {[%clk 00:10:34]} 15. dxc5 {[%clk 00:10:57]}
{[%emt 00:01:58]} Nc7 {[%clk 00:10:37]} {[%emt 00:00:02]} 16. h5 {[%clk
00:10:29]} {[%emt 00:00:33]} Nc6 {[%clk 00:10:39]} {[%emt 00:00:03]} 17. Ne2
{[%clk 00:10:25]} {[%emt 00:00:10]} b6 {[%clk 00:10:23]} {[%emt 00:00:21]} 18.
hxg6 {[%clk 00:10:12]} {[%emt 00:00:18]} fxg6 {[%clk 00:10:05]} {[%emt
00:00:23]} 19. Rh3 {[%clk 00:07:50]} {[%emt 00:02:27]} Rf7 {[%clk 00:07:41]}
{[%emt 00:02:29]} 20. Kb1 {[%clk 00:03:53]} {[%emt 00:04:02]} Rb8 {[%clk
00:07:16]} {[%emt 00:00:30]} 21. Bg2 {[%clk 00:02:12]} {[%emt 00:01:46]} bxc5
{[%clk 00:06:59]} {[%emt 00:00:22]} 22. Qxc5 {[%clk 00:02:00]} {[%emt
00:00:17]} Nxe5 {[%clk 00:06:39]} {[%emt 00:00:25]} 23. Rb3 {[%clk 00:01:25]}
{[%emt 00:00:40]} Rxb3 {[%clk 00:04:31]} {[%emt 00:02:13]} 24. axb3 {[%clk
00:01:27]} {[%emt 00:00:03]} Qa6 {[%clk 00:04:09]} {[%emt 00:00:27]} 25. Bxe5
{[%clk 00:00:59]} {[%emt 00:00:33]} Qxe2 {[%clk 00:03:35]} {[%emt 00:00:39]} 26.
Bxc7 {[%clk 00:00:23]} {[%emt 00:00:41]} Qxd1+ {[%clk 00:03:38]} {[%emt
00:00:02]} 27. Ka2 {[%clk 00:00:28]} Qd4 {[%clk 00:03:39]} {[%emt 00:00:04]} 28.
Qxd4 {[%clk 00:00:12]} {[%emt 00:00:20]} Bxd4 {[%clk 00:03:42]} {[%emt
00:00:02]} 29. Bb8 {[%clk 00:00:08]} {[%emt 00:00:10]} Rxf2 {[%clk 00:03:41]}
{[%emt 00:00:06]} 0-1

[Event "Rapid Tournament (RAP)"]
[Site "Biel, Switzerland"]
[Date "2026.07.12"]
[Round "9.29"]
[White "Pinelli, Gian"]
[Black "Arntz, Christoph"]
[Result "1-0"]
[TimeControl "15 + 5"]
[WhiteTitle "-"]
[BlackTitle "-"]
[WhiteFideId "1348710"]
[BlackFideId "16257723"]
[WhiteElo "1774"]
[BlackElo "1999"]

1. d4 {[%clk 00:15:09]} Nf6 {[%clk 00:15:07]} {[%emt 00:00:03]} 2. c4 {[%clk
00:15:12]} {[%emt 00:00:04]} e6 {[%clk 00:15:10]} 3. Nc3 {[%clk 00:15:16]} d5
{[%clk 00:15:12]} {[%emt 00:00:03]} 4. cxd5 {[%clk 00:15:19]} {[%emt 00:00:03]}
exd5 {[%clk 00:15:15]} {[%emt 00:00:01]} 5. Bg5 {[%clk 00:15:22]} {[%emt
00:00:01]} Be7 {[%clk 00:15:00]} {[%emt 00:00:20]} 6. e3 {[%clk 00:15:25]}
{[%emt 00:00:02]} O-O {[%clk 00:14:51]} {[%emt 00:00:13]} 7. Bd3 {[%clk
00:15:27]} {[%emt 00:00:04]} c6 {[%clk 00:14:18]} {[%emt 00:00:38]} 8. Nge2
{[%clk 00:15:29]} {[%emt 00:00:03]} h6 {[%clk 00:13:57]} {[%emt 00:00:27]} 9.
Bf4 {[%clk 00:15:32]} {[%emt 00:00:02]} Re8 {[%clk 00:13:13]} {[%emt 00:00:49]}
10. O-O {[%clk 00:15:34]} {[%emt 00:00:03]} Nh5 {[%clk 00:12:26]} {[%emt
00:00:52]} 11. Qc2 {[%clk 00:15:27]} {[%emt 00:00:12]} Nd7 {[%clk 00:11:56]}
{[%emt 00:00:34]} 12. Nxd5 {[%clk 00:15:27]} {[%emt 00:00:06]} Nxf4 {[%clk
00:11:40]} {[%emt 00:00:21]} 13. Nxe7+ {[%clk 00:15:22]} {[%emt 00:00:09]} Qxe7
{[%clk 00:11:27]} {[%emt 00:00:18]} 14. Nxf4 {[%clk 00:15:24]} {[%emt
00:00:03]} Nf6 {[%clk 00:11:01]} {[%emt 00:00:31]} 15. Rfe1 {[%clk 00:14:59]}
{[%emt 00:00:30]} Qd6 {[%clk 00:09:28]} {[%emt 00:01:39]} 16. Rad1 {[%clk
00:14:28]} {[%emt 00:00:36]} g5 {[%clk 00:08:56]} {[%emt 00:00:37]} 17. Ne2
{[%clk 00:14:03]} {[%emt 00:00:29]} Ng4 {[%clk 00:08:49]} {[%emt 00:00:12]} 18.
Ng3 {[%clk 00:13:46]} {[%emt 00:00:22]} Be6 {[%clk 00:07:59]} {[%emt 00:00:55]}
19. f3 {[%clk 00:13:02]} {[%emt 00:00:50]} Nf6 {[%clk 00:07:25]} {[%emt
00:00:39]} 20. Bf5 {[%clk 00:13:00]} {[%emt 00:00:06]} Rad8 {[%clk 00:07:12]}
{[%emt 00:00:18]} 21. e4 {[%clk 00:12:39]} {[%emt 00:00:27]} Qb4 {[%clk
00:06:51]} {[%emt 00:00:26]} 22. a3 {[%clk 00:12:18]} {[%emt 00:00:26]} Qb6
{[%clk 00:06:55]} 23. Qc3 {[%clk 00:12:18]} {[%emt 00:00:03]} h5 {[%clk
00:06:20]} {[%emt 00:00:41]} 24. Bxe6 {[%clk 00:11:48]} {[%emt 00:00:36]} fxe6
{[%clk 00:06:02]} {[%emt 00:00:23]} 25. Kh1 {[%clk 00:11:37]} {[%emt 00:00:15]}
h4 {[%clk 00:06:00]} {[%emt 00:00:07]} 26. Ne2 {[%clk 00:10:37]} {[%emt
00:01:02]} g4 {[%clk 00:05:53]} {[%emt 00:00:16]} 27. Rg1 {[%clk 00:09:30]}
{[%emt 00:01:10]} Qc7 {[%clk 00:05:39]} {[%emt 00:00:21]} 28. e5 {[%clk
00:09:22]} {[%emt 00:00:12]} Nd5 {[%clk 00:05:36]} {[%emt 00:00:08]} 29. Qd3
{[%clk 00:08:52]} {[%emt 00:00:30]} Qg7 {[%clk 00:05:33]} {[%emt 00:00:13]} 30.
fxg4 {[%clk 00:08:36]} {[%emt 00:00:22]} Qxg4 {[%clk 00:05:30]} {[%emt
00:00:08]} 31. Qf3 {[%clk 00:08:30]} {[%emt 00:00:05]} Qg5 {[%clk 00:05:25]}
{[%emt 00:00:15]} 32. g3 {[%clk 00:07:58]} {[%emt 00:00:38]} h3 {[%clk
00:05:23]} {[%emt 00:00:07]} 33. Nf4 {[%clk 00:07:39]} {[%emt 00:00:23]} Kh7
{[%clk 00:03:21]} {[%emt 00:02:08]} 34. Nxe6 {[%clk 00:06:55]} {[%emt
00:00:48]} Rxe6 {[%clk 00:02:30]} {[%emt 00:00:56]} 35. Qf7+ {[%clk 00:06:59]}
{[%emt 00:00:02]} Kh8 {[%clk 00:02:09]} {[%emt 00:00:26]} 36. Qxe6 {[%clk
00:07:01]} {[%emt 00:00:03]} Qh5 {[%clk 00:02:04]} {[%emt 00:00:09]} 37. Rdf1
{[%clk 00:06:44]} {[%emt 00:00:22]} Rg8 {[%clk 00:01:54]} {[%emt 00:00:15]} 38.
Qf5 {[%clk 00:06:29]} {[%emt 00:00:21]} Qh6 {[%clk 00:01:57]} {[%emt 00:00:02]}
39. Re1 {[%clk 00:05:45]} {[%emt 00:00:49]} Rf8 {[%clk 00:01:55]} {[%emt
00:00:07]} 40. Qg4 {[%clk 00:05:29]} {[%emt 00:00:20]} Rg8 {[%clk 00:01:59]}
{[%emt 00:00:02]} 41. Qh4 {[%clk 00:05:33]} {[%emt 00:00:01]} Kh7 {[%clk
00:01:59]} {[%emt 00:00:05]} 42. Qxh6+ {[%emt 00:00:02]} Kxh6 {[%emt 00:00:01]}
43. Rgf1 {[%clk 00:05:26]} {[%emt 00:00:09]} Rd8 {[%clk 00:02:02]} {[%emt
00:00:02]} 44. Re4 {[%clk 00:05:27]} {[%emt 00:00:04]} Kg5 {[%clk 00:01:57]}
{[%emt 00:00:10]} 45. Rf7 {[%clk 00:05:24]} {[%emt 00:00:07]} c5 {[%clk
00:01:58]} {[%emt 00:00:06]} 46. e6 {[%clk 00:05:03]} {[%emt 00:00:25]} Nf6
{[%clk 00:02:01]} 47. Re5+ {[%clk 00:04:57]} {[%emt 00:00:11]} Kg6 {[%clk
00:02:05]} {[%emt 00:00:01]} 48. d5 {[%clk 00:04:50]} {[%emt 00:00:13]} Nxd5
{[%clk 00:02:01]} {[%emt 00:00:09]} 49. Rd7 {[%clk 00:04:54]} Rf8 {[%clk
00:01:53]} {[%emt 00:00:13]} 50. Kg1 {[%clk 00:04:50]} {[%emt 00:00:09]} Nf6
{[%clk 00:01:57]} {[%emt 00:00:01]} 51. Rxb7 {[%clk 00:04:43]} {[%emt
00:00:11]} Rd8 {[%clk 00:02:01]} 52. Re1 {[%clk 00:04:39]} {[%emt 00:00:10]}
Rd2 {[%clk 00:01:56]} {[%emt 00:00:10]} 53. e7 {[%clk 00:03:50]} {[%emt
00:00:54]} Ne8 {[%clk 00:02:00]} {[%emt 00:00:01]} 54. Rb8 {[%clk 00:03:51]}
{[%emt 00:00:04]} Kf7 {[%clk 00:02:04]} 55. Rf1+ {[%clk 00:03:49]} {[%emt
00:00:07]} Kxe7 {[%clk 00:01:58]} {[%emt 00:00:11]} 56. Re1+ {[%clk 00:03:53]}
{[%emt 00:00:01]} Kd7 {[%clk 00:02:00]} {[%emt 00:00:02]} 57. Rbxe8 {[%clk
00:03:55]} {[%emt 00:00:03]} 1-0

[Event "Rapid Tournament (RAP)"]
[Site "Biel, Switzerland"]
[Date "2026.07.12"]
[Round "9.30"]
[White "Huang, Hsuan-Chen"]
[Black "Javet, Blaise"]
[Result "1-0"]
[TimeControl "15 + 5"]
[WhiteTitle "-"]
[BlackTitle "-"]
[WhiteFideId "16303121"]
[BlackFideId "1305026"]
[WhiteElo "1648"]
[BlackElo "1980"]

1. d4 {[%clk 00:15:08]} {[%emt 00:00:02]} Nf6 {[%clk 00:15:08]} {[%emt
00:00:02]} 2. Nf3 {[%clk 00:15:11]} {[%emt 00:00:03]} g6 {[%clk 00:15:11]} 3.
Nbd2 {[%clk 00:15:14]} {[%emt 00:00:03]} Bg7 {[%clk 00:15:13]} 4. e4 {[%clk
00:15:18]} {[%emt 00:00:03]} d6 {[%clk 00:15:16]} {[%emt 00:00:02]} 5. Bd3
{[%clk 00:15:21]} {[%emt 00:00:01]} O-O {[%clk 00:15:07]} {[%emt 00:00:14]} 6.
O-O {[%clk 00:15:24]} {[%emt 00:00:02]} Nc6 {[%clk 00:14:11]} {[%emt 00:01:02]}
7. Re1 {[%clk 00:14:54]} {[%emt 00:00:34]} e5 {[%clk 00:14:14]} {[%emt
00:00:02]} 8. c3 {[%clk 00:14:58]} {[%emt 00:00:02]} Bd7 {[%clk 00:14:10]}
{[%emt 00:00:08]} 9. Nb3 {[%clk 00:14:42]} {[%emt 00:00:21]} a5 {[%clk
00:13:53]} {[%emt 00:00:22]} 10. a4 {[%clk 00:14:46]} {[%emt 00:00:02]} exd4
{[%clk 00:13:25]} {[%emt 00:00:32]} 11. cxd4 {[%clk 00:14:09]} {[%emt
00:00:42]} Nb4 {[%clk 00:13:12]} {[%emt 00:00:18]} 12. Bb1 {[%clk 00:14:12]}
{[%emt 00:00:02]} Re8 {[%clk 00:11:57]} {[%emt 00:01:20]} 13. Bd2 {[%clk
00:12:58]} {[%emt 00:01:18]} b6 {[%clk 00:12:00]} {[%emt 00:00:03]} 14. Bc3
{[%emt 00:03:01]} c5 {[%clk 00:11:11]} 15. Nbd2 {[%clk 00:09:03]} {[%emt
00:01:58]} d5 {[%clk 00:10:12]} {[%emt 00:01:04]} 16. dxc5 {[%clk 00:08:22]}
{[%emt 00:00:46]} bxc5 {[%clk 00:10:14]} {[%emt 00:00:03]} 17. exd5 {[%clk
00:07:08]} {[%emt 00:01:19]} Nfxd5 {[%clk 00:09:13]} {[%emt 00:01:06]} 18. Bxg7
{[%clk 00:06:36]} {[%emt 00:00:37]} Kxg7 {[%clk 00:09:16]} {[%emt 00:00:03]} 19.
Ne4 {[%clk 00:06:32]} {[%emt 00:00:09]} Qc7 {[%clk 00:08:55]} {[%emt 00:00:25]}
20. Ba2 {[%clk 00:06:30]} {[%emt 00:00:07]} Be6 {[%clk 00:07:07]} {[%emt
00:01:54]} 21. Rc1 {[%clk 00:06:26]} {[%emt 00:00:08]} Nxa2 {[%clk 00:07:05]}
{[%emt 00:00:08]} 22. Rxc5 {[%clk 00:06:28]} {[%emt 00:00:02]} Qd8 {[%clk
00:05:19]} {[%emt 00:01:50]} 23. b3 {[%clk 00:05:44]} {[%emt 00:00:50]} Nab4
{[%clk 00:05:12]} {[%emt 00:00:12]} 24. Qd4+ {[%clk 00:05:31]} {[%emt
00:00:19]} Kg8 {[%clk 00:04:07]} {[%emt 00:01:10]} 25. Rd1 {[%clk 00:04:41]}
{[%emt 00:00:54]} Rc8 {[%clk 00:04:10]} {[%emt 00:00:02]} 26. Rb5 {[%clk
00:04:21]} {[%emt 00:00:25]} Qc7 {[%clk 00:03:09]} {[%emt 00:01:06]} 27. Nfd2
{[%clk 00:03:27]} {[%emt 00:00:59]} Qf4 {[%clk 00:02:45]} {[%emt 00:00:29]} 28.
g3 {[%clk 00:03:01]} {[%emt 00:00:32]} Qc7 {[%clk 00:02:28]} {[%emt 00:00:22]}
29. Nc4 {[%clk 00:03:02]} {[%emt 00:00:03]} Bf5 {[%clk 00:02:10]} {[%emt
00:00:23]} 30. Ned6 {[%clk 00:02:05]} {[%emt 00:01:02]} Be6 {[%clk 00:01:59]}
{[%emt 00:00:17]} 31. Ne4 {[%clk 00:01:08]} {[%emt 00:01:01]} Nc6 {[%clk
00:01:53]} {[%emt 00:00:11]} 32. Qb2 {[%clk 00:01:06]} {[%emt 00:00:07]} Red8
{[%clk 00:01:47]} {[%emt 00:00:11]} 33. Rbxd5 {[%clk 00:01:03]} {[%emt
00:00:08]} Bxd5 {[%clk 00:01:42]} {[%emt 00:00:10]} 34. Nf6+ {[%clk 00:01:06]}
{[%emt 00:00:02]} Kf8 {[%clk 00:01:41]} {[%emt 00:00:07]} 35. Nxh7+ {[%clk
00:01:06]} {[%emt 00:00:05]} Ke7 {[%clk 00:01:09]} {[%emt 00:00:36]} 36. Qf6+
{[%clk 00:01:05]} {[%emt 00:00:06]} Ke8 {[%clk 00:01:07]} {[%emt 00:00:07]} 37.
Qh8+ {[%clk 00:00:34]} {[%emt 00:00:35]} Ke7 {[%clk 00:01:12]} {[%emt
00:00:01]} 38. Re1+ {[%clk 00:00:18]} {[%emt 00:00:21]} Be6 {[%clk 00:01:15]}
{[%emt 00:00:02]} 39. Qf6+ {[%clk 00:00:22]} Ke8 {[%clk 00:01:18]} {[%emt
00:00:02]} 40. Rxe6+ {[%clk 00:00:26]} {[%emt 00:00:01]} fxe6 {[%clk 00:01:17]}
{[%emt 00:00:07]} 41. Qxe6+ {[%clk 00:00:28]} {[%emt 00:00:03]} Qe7 {[%clk
00:01:14]} {[%emt 00:00:08]} 42. Nf6+ {[%clk 00:00:32]} {[%emt 00:00:01]} Kf8
{[%clk 00:01:09]} {[%emt 00:00:09]} 43. Qg8# Ke8 {[%emt 00:00:03]} 44. Qe6+ Qc7
45. Nh7+ {[%emt 00:00:01]} Ne7 {[%emt 00:00:04]} 1-0